fUST/lending_fUST_20241022
["ID","MTS","AMOUNT","RATE_DAILY","PERIOD"]
[340632923,1729559446785,-500.0,0.00016712,2]
[340632924,1729559446794,-638.53,0.00016712,2]
[340632925,1729559446805,-500.0,0.00016712,2]
[340632926,1729559446815,-500.0,0.00016712,2]
[340632927,1729559446827,-500.0,0.00016712,2]
[340632928,1729559446836,-814.97,0.00016712,2]
[340632929,1729559446845,-1815.85,0.00016712,2]
[340632930,1729559446855,-739.53,0.00016712,2]
[340632931,1729559446866,-640.55,0.00016712,2]
[340632932,1729559446876,-500.0,0.00016712,2]
[340632933,1729559446884,-500.0,0.00016712,2]
[340632934,1729559446894,-701.24,0.00016712,2]
[340632935,1729559446904,-846.83,0.00016712,2]
[340632936,1729559446914,-500.0,0.00016712,2]
[340632937,1729559446924,-151.0,0.00016712,2]
[340632938,1729559446934,-151.0,0.00016712,2]
[340632939,1729559446944,-151.0,0.00016712,2]
[340632940,1729559446955,-606.74,0.00016712,2]
[340632941,1729559446965,-931.52,0.00016712,2]
[340632942,1729559446976,-760.72,0.00016712,2]
[340632943,1729559446986,-151.0,0.00016712,2]
[340632944,1729559446996,-277.73562,0.00016712,2]
[340632945,1729559447006,-871.0,0.00016712,2]
[340632946,1729559447016,-1550.03,0.00016712,2]
[340632947,1729559447025,-700.97,0.00016712,2]
[340632948,1729559447035,-500.0,0.00016712,2]
[340632949,1729559447045,-1381.49,0.00016712,2]
[340632950,1729559447054,-515.62,0.00016712,2]
[340632951,1729559447063,-500.0,0.00016712,2]
[340632952,1729559447073,-579.44,0.00016712,2]
[340632953,1729559447082,-500.0,0.00016712,2]
[340632954,1729559447092,-500.0,0.00016712,2]
[340632955,1729559447102,-781.5,0.00016712,2]
[340632956,1729559447113,-1055.13,0.00016712,2]
[340632957,1729559447123,-1088.29,0.00016712,2]
[340632958,1729559447133,-739.58,0.00016712,2]
[340632959,1729559447142,-500.0,0.00016712,2]
[340632960,1729559447152,-788.04,0.00016712,2]
[340632961,1729559447162,-500.0,0.00016712,2]
[340632962,1729559447172,-500.0,0.00016712,2]
[340632963,1729559447182,-1261.51,0.00016712,2]
[340632964,1729559447192,-890.88,0.00016712,2]
[340632965,1729559447202,-610.37,0.00016712,2]
[340632966,1729559447211,-500.0,0.00016712,2]
[340632967,1729559447221,-500.0,0.00016712,2]
[340632968,1729559447232,-500.0,0.00016712,2]
[340632969,1729559447241,-1000.0,0.00016712,2]
[340632970,1729559447251,-500.0,0.00016712,2]
[340632971,1729559447260,-623.18,0.00016712,2]
[340632972,1729559447270,-2148.95,0.00016712,2]
[340632973,1729559447279,-863.53,0.00016712,2]
[340632974,1729559447289,-6488.01,0.00016712,2]
[340632975,1729559447298,-500.0,0.00016712,2]
[340632976,1729559447308,-511.35,0.00016712,2]
[340632977,1729559447318,-500.0,0.00016712,2]
[340632978,1729559447327,-574.35,0.00016712,2]
[340632979,1729559447336,-1172.24,0.00016712,2]
[340632980,1729559447346,-500.0,0.00016712,2]
[340632981,1729559447357,-500.0,0.00016712,2]
[340632982,1729559447366,-500.0,0.00016712,2]
[340632983,1729559447376,-500.0,0.00016712,2]
[340632984,1729559447385,-3948.94,0.00016712,2]
[340632985,1729559447395,-2158.99,0.00016712,2]
[340632986,1729559447405,-500.0,0.00016712,2]
[340632987,1729559447415,-579.24,0.00016712,2]
[340632988,1729559447425,-643.04,0.00016712,2]
[340632989,1729559447435,-500.0,0.00016712,2]
[340632990,1729559447446,-788.62,0.00016712,2]
[340632991,1729559447456,-500.0,0.00016712,2]
[340632992,1729559447465,-745.92,0.00016712,2]
[340632993,1729559447476,-18724.41,0.00016712,2]
[340632994,1729559447486,-949.78,0.00016712,2]
[340632995,1729559447496,-500.0,0.00016712,2]
[340632996,1729559447506,-957.02,0.00016712,2]
[340632997,1729559447515,-800.44,0.00016712,2]
[340632998,1729559447525,-500.0,0.00016712,2]
[340632999,1729559447534,-674.94,0.00016712,2]
[340633000,1729559447543,-500.0,0.00016712,2]
[340633001,1729559447553,-900.47964609,0.00016712,2]
[340633002,1729559447567,-2844.70035391,0.00016712,2]
[340633003,1729559447577,-8553.9,0.00016712,2]
[340633004,1729559447587,-500.0,0.00016773,2]
[340633005,1729559447596,-500.0,0.00016773,2]
[340633006,1729559447606,-302.3308074,0.00016848,2]
[340633007,1729559447615,-302.3308074,0.00016848,2]
[340633008,1729559447626,-302.3308074,0.00016848,2]
[340633009,1729559447635,-302.3308074,0.00016848,2]
[340633010,1729559447645,-302.3308074,0.00016848,2]
[340633011,1729559447655,-302.3308074,0.00016848,2]
[340633012,1729559447664,-150.0,0.000169,2]
[340633013,1729559447674,-500.0,0.00016973,2]
[340633014,1729559447683,-500.0,0.00016973,2]
[340633015,1729559447694,-151.0,0.00016976,2]
[340633016,1729559447703,-18719.6430054,0.00016976,2]
[340633017,1729559447713,-1523.20481538,0.00016976,2]
[340633018,1729559546902,263.78,0.00010959,2]
[340633019,1729559595369,273.37336231,9.9e-05,2]
[340633020,1729559603177,273.37336231,9.9e-05,2]
[340633021,1729559612154,273.37336231,9.9e-05,2]
[340633022,1729559620048,273.37336231,9.9e-05,2]
[340633023,1729559628044,273.37336231,9.9e-05,2]
[340633024,1729559635925,273.37336231,9.9e-05,2]
[340633155,1729560321410,822.9,0.00011,2]
[340633166,1729560346143,-617.7965149,0.0001482,2]
[340633167,1729560346165,-357.7058386,0.00014924,2]
[340633168,1729560346186,-300.0,0.00015293,2]
[340633169,1729560346208,-300.0,0.00015293,2]
[340633170,1729560346230,-168.8187048,0.00015294,2]
[340633171,1729560350094,-736.40757502,0.00015294,2]
[340633197,1729560410093,-169.29422994,0.00015293,2]
[340633199,1729560431120,-152.0,0.0001359,2]
[340633200,1729560431141,-300.0,0.00015293,2]
[340633201,1729560431163,-864.43,0.00015294,2]
[340633202,1729560435102,-1509.938553,0.00015294,2]
[340633203,1729560439090,-265.50212003,0.00015294,2]
[340633204,1729560445090,-202.91063176,0.00015294,2]
[340633214,1729560611410,184.7233213,0.00010959,2]
[340633215,1729560611434,611.7966787,0.00010959,2]
[340633216,1729560612832,99.22248378,9.9e-05,2]
[340633217,1729560612854,56.7988848,9.9e-05,2]
[340633257,1729560632477,-300.0,0.00015293,2]
[340633258,1729560632488,-8394.81079016,0.00015294,2]
[340633337,1729560643762,-330.13935196,0.00015294,2]
[340633344,1729560646413,-70.42618593,0.00015294,2]
[340633345,1729560646425,-12356.61608734,0.00015294,2]
[340633346,1729560646434,-160.304759,0.0001589,2]
[340633347,1729560646444,-441.73157897,0.00016,7]
[340633348,1729560646454,-3043.0105676,0.00016055,2]
[340633349,1729560646464,-527.0,0.00016135,2]
[340633350,1729560646473,-302.3308074,0.000164,2]
[340633351,1729560646483,-302.3308074,0.000164,2]
[340633352,1729560646493,-302.3308074,0.000164,2]
[340633353,1729560646502,-302.3308074,0.000164,2]
[340633354,1729560646511,-4684.53263307,0.00016418,2]
[340633355,1729560646521,-317.49596421,0.00016418,2]
[340633356,1729560646530,-500.14728377,0.00016418,2]
[340633357,1729560646539,-500.0,0.00016427,2]
[340633358,1729560646549,-500.0,0.00016427,2]
[340633359,1729560646558,-500.0,0.00016427,2]
[340633360,1729560646567,-500.0,0.00016427,2]
[340633361,1729560646577,-500.0,0.00016427,2]
[340633362,1729560646586,-500.0,0.00016427,2]
[340633363,1729560646596,-500.0,0.00016427,2]
[340633364,1729560646605,-295.0,0.00016427,2]
[340633365,1729560646614,-6246.04351076,0.00016428,2]
[340633366,1729560646624,-317.49596421,0.00016428,2]
[340633367,1729560646634,-500.0,0.00016438,2]
[340633368,1729560646643,-670.06,0.00016438,2]
[340633369,1729560646652,-500.0,0.00016438,2]
[340633370,1729560646662,-500.0,0.00016438,2]
[340633371,1729560646672,-500.0,0.00016438,2]
[340633372,1729560646681,-547.96,0.00016438,2]
[340633373,1729560646690,-501.04,0.00016438,2]
[340633374,1729560646699,-200.0,0.00016438,2]
[340633375,1729560646709,-500.0,0.00016438,2]
[340633376,1729560646718,-500.0,0.00016438,2]
[340633377,1729560646727,-500.0,0.00016438,2]
[340633378,1729560646736,-659.19,0.00016438,2]
[340633379,1729560646749,-500.0,0.00016438,2]
[340633380,1729560646758,-500.0,0.00016438,2]
[340633381,1729560646767,-500.0,0.00016438,2]
[340633382,1729560646777,-500.0,0.00016438,2]
[340633383,1729560646786,-500.0,0.00016438,2]
[340633384,1729560646795,-500.0,0.00016438,2]
[340633385,1729560646804,-500.0,0.00016438,2]
[340633386,1729560646814,-500.0,0.00016438,2]
[340633387,1729560646823,-500.0,0.00016438,2]
[340633388,1729560646832,-584.13,0.00016438,2]
[340633389,1729560646841,-500.0,0.00016438,2]
[340633390,1729560646851,-534.74,0.00016438,2]
[340633391,1729560646860,-500.0,0.00016438,2]
[340633392,1729560646870,-694.4,0.00016438,2]
[340633393,1729560646879,-501.26,0.00016438,2]
[340633394,1729560646888,-500.0,0.00016438,2]
[340633395,1729560646898,-500.0,0.00016438,2]
[340633396,1729560646906,-500.0,0.00016438,2]
[340633397,1729560646916,-583.21,0.00016438,2]
[340633398,1729560646925,-500.0,0.00016438,2]
[340633399,1729560646934,-500.0,0.00016438,2]
[340633400,1729560646942,-500.0,0.00016438,2]
[340633401,1729560646951,-500.0,0.00016438,2]
[340633402,1729560646960,-715.9,0.00016438,2]
[340633403,1729560646970,-500.0,0.00016438,2]
[340633404,1729560646979,-582.6,0.00016438,2]
[340633405,1729560646988,-500.0,0.00016438,2]
[340633406,1729560646997,-500.0,0.00016438,2]
[340633407,1729560647006,-500.0,0.00016438,2]
[340633408,1729560647015,-552.53,0.00016438,2]
[340633409,1729560647024,-500.0,0.00016438,2]
[340633410,1729560647033,-500.0,0.00016438,2]
[340633411,1729560647042,-559.7,0.00016438,2]
[340633412,1729560647051,-718.64,0.00016438,2]
[340633413,1729560647060,-500.0,0.00016438,2]
[340633414,1729560647069,-500.0,0.00016438,2]
[340633415,1729560647078,-500.0,0.00016438,2]
[340633416,1729560647087,-500.0,0.00016438,2]
[340633417,1729560647096,-648.48,0.00016438,2]
[340633418,1729560647105,-795.82,0.00016438,2]
[340633419,1729560647115,-639.65,0.00016438,2]
[340633420,1729560647124,-500.0,0.00016438,2]
[340633421,1729560647133,-495.65857236,0.00016438,2]
[340633422,1729560647142,-500.0,0.00016438,2]
[340633423,1729560647151,-1244.24,0.00016438,2]
[340633424,1729560647162,-500.0,0.00016438,2]
[340633425,1729560647171,-500.0,0.00016438,2]
[340633426,1729560647181,-640.84,0.00016438,2]
[340633427,1729560647191,-500.0,0.00016438,2]
[340633428,1729560647201,-500.0,0.00016438,2]
[340633429,1729560647210,-500.0,0.00016438,2]
[340633430,1729560647219,-1221.1,0.00016438,2]
[340633431,1729560647228,-500.0,0.00016438,2]
[340633432,1729560647238,-632.03,0.00016438,2]
[340633433,1729560647247,-524.12,0.00016438,2]
[340633434,1729560647256,-500.0,0.00016438,2]
[340633435,1729560647265,-500.0,0.00016438,2]
[340633436,1729560647275,-533.73,0.00016438,2]
[340633437,1729560647284,-500.0,0.00016438,2]
[340633438,1729560647293,-698.76,0.00016438,2]
[340633439,1729560647303,-562.15,0.00016438,2]
[340633440,1729560647312,-500.0,0.00016438,2]
[340633441,1729560647321,-677.9,0.00016438,2]
[340633442,1729560647331,-500.0,0.00016438,2]
[340633443,1729560647341,-500.0,0.00016438,2]
[340633444,1729560647350,-500.0,0.00016438,2]
[340633445,1729560647359,-580.8,0.00016438,2]
[340633446,1729560647369,-500.0,0.00016438,2]
[340633447,1729560647379,-853.89,0.00016438,2]
[340633448,1729560647388,-500.0,0.00016438,2]
[340633449,1729560647399,-569.18,0.00016438,2]
[340633450,1729560647410,-500.0,0.00016438,2]
[340633451,1729560647420,-500.0,0.00016438,2]
[340633452,1729560647430,-500.0,0.00016438,2]
[340633453,1729560647439,-500.0,0.00016438,2]
[340633454,1729560647449,-500.0,0.00016438,2]
[340633455,1729560647459,-500.0,0.00016438,2]
[340633456,1729560647469,-537.91,0.00016438,2]
[340633457,1729560647479,-539.54,0.00016438,2]
[340633458,1729560647489,-500.0,0.00016438,2]
[340633459,1729560647498,-500.0,0.00016438,2]
[340633460,1729560647508,-1000.0,0.00016438,2]
[340633461,1729560647517,-797.01,0.00016438,2]
[340633462,1729560647527,-976.7,0.00016438,2]
[340633463,1729560647538,-500.0,0.00016438,2]
[340633464,1729560647547,-500.0,0.00016438,2]
[340633465,1729560647557,-500.0,0.00016438,2]
[340633466,1729560647567,-500.0,0.00016438,2]
[340633467,1729560647576,-500.0,0.00016438,2]
[340633468,1729560647585,-500.0,0.00016438,2]
[340633469,1729560647595,-500.0,0.00016438,2]
[340633470,1729560647603,-500.0,0.00016438,2]
[340633471,1729560647613,-1031.43,0.00016438,2]
[340633472,1729560647622,-500.0,0.00016438,2]
[340633473,1729560647631,-500.0,0.00016438,2]
[340633474,1729560647640,-819.73,0.00016438,2]
[340633475,1729560647649,-500.0,0.00016438,2]
[340633476,1729560647658,-500.0,0.00016438,2]
[340633477,1729560647668,-500.0,0.00016438,2]
[340633478,1729560647677,-1152.75,0.00016438,2]
[340633479,1729560647686,-500.0,0.00016438,2]
[340633480,1729560647695,-500.0,0.00016438,2]
[340633481,1729560647704,-500.0,0.00016438,2]
[340633482,1729560647713,-500.0,0.00016438,2]
[340633483,1729560647722,-505.21,0.00016438,2]
[340633484,1729560647731,-837.69,0.00016438,2]
[340633485,1729560647743,-500.0,0.00016438,2]
[340633486,1729560647753,-532.73,0.00016438,2]
[340633487,1729560647762,-500.0,0.00016438,2]
[340633488,1729560647771,-500.0,0.00016438,2]
[340633489,1729560647780,-500.0,0.00016438,2]
[340633490,1729560647792,-500.0,0.00016438,2]
[340633491,1729560647801,-523.41,0.00016438,2]
[340633492,1729560647810,-500.0,0.00016438,2]
[340633493,1729560647820,-500.0,0.00016438,2]
[340633494,1729560647829,-500.0,0.00016438,2]
[340633495,1729560647838,-500.0,0.00016438,2]
[340633496,1729560647846,-500.0,0.00016438,2]
[340633497,1729560647855,-500.0,0.00016438,2]
[340633498,1729560647865,-500.0,0.00016438,2]
[340633499,1729560647874,-500.0,0.00016438,2]
[340633500,1729560647883,-602.87,0.00016438,2]
[340633501,1729560647892,-1281.33,0.00016438,2]
[340633502,1729560647901,-500.0,0.00016438,2]
[340633503,1729560647911,-702.11376713,0.00016438,2]
[340633509,1729560756228,218.82,0.00010959,2]
[340633525,1729561540138,-153.0,0.0001359,2]
[340633526,1729561540162,-128.54129314,0.00015009,2]
[340633527,1729561581858,434.41,0.00010959,2]
[340633528,1729561592482,175.1,0.00010959,2]
[340633529,1729561603016,875.53,0.00010959,2]
[340633530,1729561628129,-300.0,0.00015009,2]
[340633531,1729561628152,-300.0,0.00015009,2]
[340633532,1729561628173,-1070.076,0.0001501,2]
[340633533,1729561631078,-297.14708852,0.0001501,2]
[340633534,1729561634195,582.88,0.00010959,2]
[340633540,1729561650106,-2078.98386314,0.0001501,2]
[340633548,1729561747298,-414.8553266,0.00014715,2]
[340633549,1729561752862,1707.89779493,0.00014609,2]
[340633550,1729561753078,-753.87069209,0.00014609,2]
[340633551,1729561755087,-414.12718638,0.00014609,2]
[340633569,1729561809778,868.95,0.00010959,2]
[340633636,1729561838928,-3997.96073926,0.00015009,2]
[340633638,1729561838938,-300.0,0.00015009,2]
[340633640,1729561838948,-16410.28449404,0.0001501,2]
[340633642,1729561838958,-150.0,0.0001505,2]
[340633644,1729561838968,-224.9308814,0.00015091,2]
[340633646,1729561838977,-250.0,0.00015192,2]
[340633647,1729561838987,-250.0,0.00015234,2]
[340633649,1729561838997,-3893.98996714,0.0001527,2]
[340633651,1729561839007,-250.0,0.00015276,2]
[340633653,1729561839017,-250.0,0.00015317,2]
[340633655,1729561839026,-250.0,0.00015359,2]
[340633657,1729561839036,-190.0,0.00015389,2]
[340633659,1729561839045,-250.0,0.00015401,2]
[340633661,1729561839055,-250.0,0.00015442,2]
[340633663,1729561839065,-250.0,0.00015484,2]
[340633665,1729561839075,-250.0,0.00015526,2]
[340633667,1729561839085,-250.0,0.00015567,2]
[340633669,1729561839096,-250.0,0.00015609,2]
[340633671,1729561839106,-250.0,0.00015651,2]
[340633673,1729561839116,-250.0,0.00015692,2]
[340633675,1729561839125,-250.0,0.00015734,2]
[340633677,1729561839135,-250.0,0.00015776,2]
[340633679,1729561839145,-250.0,0.00015817,2]
[340633681,1729561839155,-250.0,0.00015859,2]
[340633683,1729561839164,-160.304759,0.0001589,2]
[340633685,1729561839173,-250.0,0.00015901,2]
[340633687,1729561839183,-250.0,0.00015942,2]
[340633689,1729561839192,-250.0,0.00015984,2]
[340633691,1729561839202,-1005.26847516,0.00016,2]
[340633692,1729561839211,-2614.2566796,0.00016055,2]
[340633694,1729561839220,-528.82297641,0.00016055,2]
[340633696,1729561839230,-2452.73087431,0.00016109,2]
[340633698,1729561839240,-154.43311952,0.00016276,2]
[340633700,1729561839250,-1193.85229216,0.000163,2]
[340634117,1729561844080,-11769.69512215,0.000163,2]
[340634145,1729561846565,-7627.36236848,0.000163,2]
[340634158,1729562321664,835.0,0.00022,60]
[340634168,1729562826146,-205.99694305,0.00013863,2]
[340634169,1729562842144,-94.00305695,0.00013863,2]
[340634170,1729562842167,-300.0,0.00013863,2]
[340634171,1729562842190,-12794.15327973,0.00013864,2]
[340634174,1729562953126,-300.0,0.00013863,2]
[340634175,1729562953149,-300.0,0.00013863,2]
[340634176,1729562953172,-12105.84672027,0.00013864,2]
[340634177,1729562953193,-3000.0,0.00014214,2]
[340634178,1729562953216,-161.74604,0.0001432,2]
[340634179,1729562953239,-161.74604,0.0001437,2]
[340634180,1729562953261,-161.74604,0.0001442,2]
[340634181,1729562953283,-161.74604,0.0001447,2]
[340634182,1729562953305,-161.74604,0.00014519,2]
[340634183,1729562953332,-161.74604,0.00014569,2]
[340634184,1729562953354,-161.74604,0.00014619,2]
[340634185,1729562953375,-161.74604,0.00014669,2]
[340634186,1729562953397,-161.74604,0.00014718,2]
[340634187,1729562953419,-161.74604,0.00014768,2]
[340634188,1729562954291,154.3473291,0.00014114,2]
[340634190,1729563003838,264.78,0.00010959,2]
[340634258,1729563038917,-161.74604,0.00014818,2]
[340634260,1729563038927,-161.74604,0.00014868,2]
[340634262,1729563038936,-161.74604,0.00014917,2]
[340634264,1729563038946,-161.74604,0.00014967,2]
[340634266,1729563038956,-161.74604,0.00015017,2]
[340634267,1729563038966,-161.74604,0.00015067,2]
[340634269,1729563038978,-182.103275,0.00015208,2]
[340634271,1729563038987,-182.103275,0.00015212,2]
[340634273,1729563038997,-182.103275,0.00015216,2]
[340634275,1729563039007,-182.103275,0.0001522,2]
[340634276,1729563039016,-182.103275,0.00015224,2]
[340634278,1729563039026,-182.103275,0.00015228,2]
[340634280,1729563039037,-182.103275,0.00015232,2]
[340634282,1729563039046,-182.103275,0.00015236,2]
[340634284,1729563039056,-182.103275,0.0001524,2]
[340634286,1729563039066,-182.103275,0.00015244,2]
[340634288,1729563039075,-182.103275,0.00015248,2]
[340634290,1729563039086,-182.103275,0.00015252,2]
[340634292,1729563039095,-182.103275,0.00015256,2]
[340634294,1729563039104,-182.103275,0.0001526,2]
[340634296,1729563039114,-182.103275,0.00015264,2]
[340634298,1729563039123,-300.0,0.00015264,2]
[340634300,1729563039134,-300.0,0.00015264,2]
[340634302,1729563039145,-182.103275,0.00015268,2]
[340634304,1729563039155,-182.103275,0.00015272,2]
[340634306,1729563039164,-182.103275,0.00015276,2]
[340634308,1729563039174,-182.103275,0.0001528,2]
[340634310,1729563039184,-182.103275,0.00015284,2]
[340634312,1729563039194,-160.860278,0.0001589,2]
[340634314,1729563039204,-809.999999,0.00016,2]
[340634316,1729563039213,-1009.89767901,0.00016002,2]
[340634318,1729563039223,-2091.4053438,0.00016055,2]
[340634320,1729563039233,-4232.09464019,0.00016107,2]
[340634324,1729563039258,-1077.08746038,0.00016107,2]
[340634326,1729563039270,-584.23493398,0.00016107,2]
[340634344,1729563040795,-1647.00629964,0.00016107,2]
[340634346,1729563040806,-2146.13951496,0.0001613,2]
[340634348,1729563040816,-1874.26631678,0.00016218,2]
[340634349,1729563040828,-202.75347741,0.00016229,2]
[340634351,1729563040838,-500.0,0.00016229,2]
[340634353,1729563040847,-500.0,0.00016229,2]
[340634355,1729563040857,-500.0,0.00016229,2]
[340634356,1729563040868,-500.0,0.00016229,2]
[340634357,1729563040878,-500.0,0.00016229,2]
[340634358,1729563040889,-394.66294804,0.00016229,2]
[340634359,1729563040899,-500.0,0.00016229,2]
[340634360,1729563040909,-500.0,0.00016229,2]
[340634361,1729563040919,-345.96932982,0.00016229,2]
[340634362,1729563040929,-547.11173005,0.0001623,2]
[340634363,1729563040938,-23008.22987684,0.0001623,2]
[340634364,1729563040948,-7239.12044802,0.0001623,2]
[340634365,1729563040958,-115112.659008,0.0001623,2]
[340634366,1729563040968,-43619.9604381,0.0001623,2]
[340634367,1729563040978,-29652.0978151,0.0001625,2]
[340634368,1729563040988,-151.0,0.00016288,2]
[340634369,1729563040998,-151.0,0.00016288,2]
[340634370,1729563041007,-151.0,0.00016288,2]
[340634371,1729563041017,-172.040041,0.00016288,2]
[340634373,1729563041027,-12470.27214614,0.00016289,2]
[340634375,1729563041054,-5971.94469596,0.00016289,2]
[340634376,1729563041066,-4750.43544729,0.00016289,2]
[340634402,1729563155847,1645.0,0.00022,60]
[340634414,1729563993158,-169.29422994,0.00014907,2]
[340634415,1729564030125,-2624.94368987,0.00014907,2]
[340634416,1729564032093,-205.76208019,0.00014907,2]
[340634417,1729564032114,-300.0,0.00015043,2]
[340634418,1729564032135,-300.0,0.00015043,2]
[340634419,1729564032156,-4595.25864783,0.00015044,2]
[340634422,1729564035136,-179.19122403,0.00015044,2]
[340634432,1729564094028,156.02136858,9.9e-05,2]
[340634433,1729564096057,796.52,0.00010959,2]
[340634512,1729564242949,-1877.87207559,0.00014943,2]
[340634513,1729564242958,-300.0,0.00014999,2]
[340634514,1729564242968,-300.0,0.00014999,2]
[340634515,1729564242977,-500.0,0.00014999,2]
[340634516,1729564242986,-500.0,0.00014999,2]
[340634517,1729564242996,-500.0,0.00014999,2]
[340634518,1729564243006,-316.21881442,0.00014999,2]
[340634519,1729564243015,-494.44987278,0.00015,2]
[340634520,1729564243026,-118801.98349773,0.00015,2]
[340634521,1729564243036,-500.0,0.00015,2]
[340634522,1729564243046,-20125.55012814,0.00015044,2]
[340634523,1729564243055,-1000.0,0.00015274,2]
[340634524,1729564243064,-1500.0,0.00015675,2]
[340634526,1729564243074,-160.860278,0.0001589,2]
[340634528,1729564243083,-8891.17465365,0.00015977,2]
[340634530,1729564243093,-1673.124275,0.00016055,2]
[340634532,1729564243103,-34192.77647566,0.0001613,2]
[340634533,1729564243112,-2000.0,0.00016143,2]
[340634534,1729564243123,-1000.0,0.00016188,2]
[340634535,1729564243134,-1865.7010458,0.000162,2]
[340634536,1729564243143,-210.707646,0.00016257,2]
[340634537,1729564243153,-19755.03790268,0.00016257,2]
[340634538,1729564243162,-5278.84136739,0.00016257,2]
[340634539,1729564243172,-16679.3742182,0.00016257,2]
[340634540,1729564243181,-90003.55405868,0.00016257,2]
[340634541,1729564243194,-4000.0,0.00016257,2]
[340634570,1729564245947,-151.595693,0.00016257,2]
[340634571,1729564245960,-118.6568835,0.00016257,2]
[340634572,1729564245974,-383.52020004,0.00016257,2]
[340634573,1729564245988,-302.0,0.00016257,2]
[340634589,1729564722034,2000.0,0.00022,60]
[340634590,1729565225140,-300.0,0.000148,2]
[340634591,1729565225166,-300.0,0.000148,2]
[340634592,1729565225189,-3419.13420687,0.00014801,2]
[340634593,1729565227079,-451.60249124,0.00014801,2]
[340634595,1729565243147,-3301.70076899,0.00014801,2]
[340634596,1729565282123,868.95,0.00010959,2]
[340634682,1729565496560,414.8553266,0.00014758,2]
[340634725,1729566124285,152.0,0.00022,60]
[340634727,1729566432086,-300.0,0.00013245,2]
[340634728,1729566432108,-300.0,0.00013245,2]
[340634729,1729566432130,-123.643872,0.00013246,2]
[340634730,1729566432159,-14940.34505504,0.00013246,2]
[340634732,1729566442140,-3569.89534108,0.00013246,2]
[340634733,1729566488004,264.78,0.00010959,2]
[340634734,1729566545096,-6266.11573188,0.00013246,2]
[340634735,1729566545117,-3000.0,0.00013316,2]
[340634736,1729566545137,-300.0,0.00013408,2]
[340634737,1729566545158,-300.0,0.00013409,2]
[340634738,1729566545179,-574.88021666,0.0001341,2]
[340634739,1729566545200,-185.446323,0.0001351,2]
[340634740,1729566545220,-2875.8956734,0.00013648,2]
[340634741,1729566545242,-185.446323,0.00013862,2]
[340634742,1729566545263,-185.446323,0.00014214,2]
[340634743,1729566545283,-2639.42068369,0.00014586,2]
[340634744,1729566545304,-6953.56550914,0.00014586,2]
[340634745,1729566545323,-150.78389433,0.00014587,2]
[340634746,1729566545344,-420.0,0.00014699,2]
[340634747,1729566545364,-420.0,0.00014749,2]
[340634810,1729566640323,-161.74604,0.00014979,2]
[340634811,1729566640333,-161.74604,0.00015066,2]
[340634812,1729566640342,-154.3473291,0.00015139,2]
[340634813,1729566640351,-108.5255895,0.00015153,2]
[340634837,1729566640843,-53.2204505,0.00015153,2]
[340634838,1729566640852,-6953.56550914,0.00015225,2]
[340634839,1729566640862,-161.74604,0.00015239,2]
[340634840,1729566640875,-152.0,0.0001529,2]
[340634841,1729566640884,-161.74604,0.00015326,2]
[340634842,1729566640894,-161.74604,0.00015413,2]
[340634843,1729566640904,-161.74604,0.000155,2]
[340634844,1729566640913,-161.74604,0.00015586,2]
[340634845,1729566640923,-153.0,0.00015616,2]